[Event "*** Titled Tuesday Blitz"]
[Site "Chess.com"]
[Date "2020.04.28"]
[Round "8"]
[White "Szparu"]
[Black "ChelsieMonica"]
[Result "0-1"]
[WhiteElo "2495"]
[BlackElo "2359"]
[TimeControl "180+1"]
[EndTime "11:36:45 PDT"]
[Termination "ChelsieMonica won on time"]

1. e4 {[%clk 0:03:00.9]} 1... e5 {[%clk 0:02:58.9]} 2. Nf3 {[%clk 0:03:00.8]}
2... Nc6 {[%clk 0:02:58.3]} 3. Bc4 {[%clk 0:03:00.4]} 3... Bc5 {[%clk
0:02:57.8]} 4. b4 {[%clk 0:03:00.2]} 4... Bxb4 {[%clk 0:02:57.6]} 5. c3 {[%clk
0:03:00.2]} 5... Ba5 {[%clk 0:02:52.5]} 6. d4 {[%clk 0:02:58.3]} 6... exd4
{[%clk 0:02:47.2]} 7. O-O {[%clk 0:02:50.8]} 7... Nf6 {[%clk 0:02:45.3]} 8. e5
{[%clk 0:02:35.1]} 8... d5 {[%clk 0:02:44.6]} 9. exf6 {[%clk 0:02:05.8]} 9...
dxc4 {[%clk 0:02:44]} 10. fxg7 {[%clk 0:01:59.1]} 10... Rg8 {[%clk 0:02:43.6]}
11. Bg5 {[%clk 0:01:56.7]} 11... Qd5 {[%clk 0:02:43]} 12. Re1+ {[%clk
0:01:19.1]} 12... Be6 {[%clk 0:02:41.8]} 13. Bf6 {[%clk 0:01:13.4]} 13... Qf5
{[%clk 0:02:16.5]} 14. Nxd4 {[%clk 0:00:43.8]} 14... Nxd4 {[%clk 0:01:55.4]} 15.
Qxd4 {[%clk 0:00:33.4]} 15... Bb6 {[%clk 0:01:51.7]} 16. Qh4 {[%clk 0:00:31.1]}
16... c6 {[%clk 0:01:09.9]} 17. Nd2 {[%clk 0:00:30.2]} 17... Bd8 {[%clk
0:01:10]} 18. Ne4 {[%clk 0:00:20.3]} 18... Bc7 {[%clk 0:00:55.2]} 19. Rad1
{[%clk 0:00:20.2]} 19... b6 {[%clk 0:00:35.7]} 20. Bd4 {[%clk 0:00:19.3]} 20...
f6 {[%clk 0:00:31.2]} 21. Nxf6+ {[%clk 0:00:18.6]} 21... Kf7 {[%clk 0:00:31.4]}
22. Nxg8 {[%clk 0:00:18]} 22... Rxg8 {[%clk 0:00:29.9]} 23. Re3 {[%clk
0:00:15.7]} 23... c5 {[%clk 0:00:19.2]} 24. Rf3 {[%clk 0:00:14.8]} 24... cxd4
{[%clk 0:00:19.6]} 25. Rxf5+ {[%clk 0:00:14.4]} 25... Bxf5 {[%clk 0:00:20.5]}
26. Qh5+ {[%clk 0:00:12.4]} 26... Bg6 {[%clk 0:00:19.7]} 27. Qd5+ {[%clk
0:00:12.6]} 27... Kxg7 {[%clk 0:00:20.1]} 28. Qd7+ {[%clk 0:00:12.5]} 28... Kh6
{[%clk 0:00:20]} 29. Qxc7 {[%clk 0:00:12.5]} 29... d3 {[%clk 0:00:19.5]} 30.
Qf4+ {[%clk 0:00:12.7]} 30... Kg7 {[%clk 0:00:19.5]} 31. Qxc4 {[%clk 0:00:12.9]}
31... Rf8 {[%clk 0:00:19.9]} 32. Qd4+ {[%clk 0:00:12.7]} 32... Kg8 {[%clk
0:00:19.4]} 33. Rxd3 {[%clk 0:00:11.8]} 33... Bxd3 {[%clk 0:00:18.5]} 34. Qxd3
{[%clk 0:00:11.7]} 34... Re8 {[%clk 0:00:19.4]} 35. Kf1 {[%clk 0:00:11.2]} 35...
Kf7 {[%clk 0:00:18.8]} 36. Qd7+ {[%clk 0:00:11]} 36... Re7 {[%clk 0:00:19.1]}
37. Qf5+ {[%clk 0:00:10.7]} 37... Kg7 {[%clk 0:00:19.3]} 38. Qg5+ {[%clk
0:00:10.8]} 38... Kf8 {[%clk 0:00:19.7]} 39. Qxe7+ {[%clk 0:00:10.9]} 39... Kxe7
{[%clk 0:00:20.6]} 40. Ke2 {[%clk 0:00:11.1]} 40... Kf6 {[%clk 0:00:21.4]} 41.
Kd3 {[%clk 0:00:11.4]} 41... Ke5 {[%clk 0:00:22.3]} 42. Ke3 {[%clk 0:00:11.4]}
42... Kd5 {[%clk 0:00:23.2]} 43. g4 {[%clk 0:00:11.4]} 43... Kc4 {[%clk
0:00:24.1]} 44. Kd2 {[%clk 0:00:11.3]} 44... Kd5 {[%clk 0:00:21.7]} 45. Ke3
{[%clk 0:00:10.7]} 45... Ke5 {[%clk 0:00:21.9]} 46. h4 {[%clk 0:00:10.6]} 46...
Kd5 {[%clk 0:00:22.8]} 47. Kd3 {[%clk 0:00:09.9]} 47... Ke5 {[%clk 0:00:22.4]}
48. g5 {[%clk 0:00:07]} 48... Kf4 {[%clk 0:00:23.3]} 49. Ke2 {[%clk 0:00:06.9]}
49... Kg4 {[%clk 0:00:23.6]} 50. Ke3 {[%clk 0:00:06.2]} 50... Kxh4 {[%clk
0:00:23.5]} 51. Kf4 {[%clk 0:00:06.3]} 51... b5 {[%clk 0:00:22.5]} 52. Kf5
{[%clk 0:00:06]} 52... a5 {[%clk 0:00:22.8]} 53. f4 {[%clk 0:00:05.4]} 53... Kg3
{[%clk 0:00:23.2]} 54. Kf6 {[%clk 0:00:04.9]} 54... Kxf4 {[%clk 0:00:23]} 55.
Kg7 {[%clk 0:00:04.9]} 55... Kxg5 {[%clk 0:00:23.2]} 56. Kxh7 {[%clk 0:00:05.1]}
56... Kf5 {[%clk 0:00:23.8]} 57. Kh6 {[%clk 0:00:04.5]} 57... Ke4 {[%clk
0:00:24.1]} 58. Kg5 {[%clk 0:00:04.7]} 58... Kd3 {[%clk 0:00:24.5]} 59. a4
{[%clk 0:00:04.8]} 59... bxa4 {[%clk 0:00:24]} 60. c4 {[%clk 0:00:05]} 60...
Kxc4 {[%clk 0:00:23.8]} 61. Kf4 {[%clk 0:00:05.9]} 61... a3 {[%clk 0:00:24.5]}
62. Ke3 {[%clk 0:00:04]} 62... a2 {[%clk 0:00:25.4]} 63. Kd2 {[%clk 0:00:04.2]}
63... a1=Q {[%clk 0:00:26.3]} 0-1

[Event "*** Titled Tuesday Blitz"]
[Site "Chess.com"]
[Date "2020.04.28"]
[Round "8"]
[White "tomsishere"]
[Black "tomozupan"]
[Result "0-1"]
[WhiteElo "2384"]
[BlackElo "2232"]
[TimeControl "180+1"]
[EndTime "11:36:48 PDT"]
[Termination "tomozupan won by checkmate"]

1. d4 {[%clk 0:03:00.9]} 1... Nf6 {[%clk 0:02:56.4]} 2. Bf4 {[%clk 0:03:00.4]}
2... g6 {[%clk 0:02:55.9]} 3. Nc3 {[%clk 0:02:59.5]} 3... d5 {[%clk 0:02:54.4]}
4. e3 {[%clk 0:02:59.6]} 4... Bg7 {[%clk 0:02:54]} 5. h4 {[%clk 0:02:59.4]} 5...
Bg4 {[%clk 0:02:46]} 6. f3 {[%clk 0:02:55.8]} 6... Bd7 {[%clk 0:02:39.6]} 7. Qd2
{[%clk 0:02:47.6]} 7... Na6 {[%clk 0:02:35.1]} 8. Nh3 {[%clk 0:02:32.1]} 8...
O-O {[%clk 0:02:33.2]} 9. Nf2 {[%clk 0:02:23.4]} 9... Rc8 {[%clk 0:02:31.2]} 10.
Bxa6 {[%clk 0:02:21.6]} 10... bxa6 {[%clk 0:02:30.3]} 11. Nd3 {[%clk 0:02:22.1]}
11... Bb5 {[%clk 0:02:26.4]} 12. Nxb5 {[%clk 0:02:07.7]} 12... axb5 {[%clk
0:02:25.7]} 13. g4 {[%clk 0:02:07.3]} 13... Nd7 {[%clk 0:02:23.8]} 14. h5 {[%clk
0:02:06]} 14... Re8 {[%clk 0:02:10.4]} 15. hxg6 {[%clk 0:02:04.9]} 15... fxg6
{[%clk 0:02:10.5]} 16. Qh2 {[%clk 0:02:04.7]} 16... Nf8 {[%clk 0:02:09.9]} 17.
O-O-O {[%clk 0:01:50.8]} 17... c6 {[%clk 0:01:49.4]} 18. Be5 {[%clk 0:01:48.4]}
18... Qa5 {[%clk 0:01:41.4]} 19. Kb1 {[%clk 0:01:44.7]} 19... b4 {[%clk
0:01:37.9]} 20. Bxg7 {[%clk 0:01:40.1]} 20... Kxg7 {[%clk 0:01:37.4]} 21. Qe5+
{[%clk 0:01:40.6]} 21... Kg8 {[%clk 0:01:37]} 22. Rh6 {[%clk 0:01:38.2]} 22...
Qb6 {[%clk 0:01:27.6]} 23. Rdh1 {[%clk 0:01:36]} 23... a5 {[%clk 0:01:25.5]} 24.
Nc5 {[%clk 0:01:20.2]} 24... Qc7 {[%clk 0:01:21.5]} 25. f4 {[%clk 0:01:05.3]}
25... Qxe5 {[%clk 0:01:20.8]} 26. fxe5 {[%clk 0:01:05.4]} 26... e6 {[%clk
0:01:15.4]} 27. Nb7 {[%clk 0:00:57.5]} 27... Rc7 {[%clk 0:01:08.6]} 28. Nxa5
{[%clk 0:00:57.1]} 28... c5 {[%clk 0:01:03.8]} 29. dxc5 {[%clk 0:00:56.4]} 29...
Rxc5 {[%clk 0:01:03.6]} 30. Nb3 {[%clk 0:00:56.5]} 30... Rc4 {[%clk 0:01:03.8]}
31. Nd4 {[%clk 0:00:49.8]} 31... Ra8 {[%clk 0:01:02.8]} 32. g5 {[%clk
0:00:45.8]} 32... Rc5 {[%clk 0:01:02.6]} 33. Rf1 {[%clk 0:00:43.8]} 33... Rca5
{[%clk 0:00:59.2]} 34. a3 {[%clk 0:00:29.8]} 34... bxa3 {[%clk 0:00:59]} 35. b4
{[%clk 0:00:30.2]} 35... Ra4 {[%clk 0:00:53]} 36. c3 {[%clk 0:00:29]} 36... a2+
{[%clk 0:00:51.7]} 37. Ka1 {[%clk 0:00:29.2]} 37... Rc8 {[%clk 0:00:51.3]} 38.
Nb5 {[%clk 0:00:26.6]} 38... Nd7 {[%clk 0:00:40.9]} 39. Rfh1 {[%clk 0:00:22.1]}
39... Nf8 {[%clk 0:00:39.1]} 40. R6h4 {[%clk 0:00:21.7]} 40... Rb8 {[%clk
0:00:29.1]} 41. Nd4 {[%clk 0:00:19.4]} 41... Rc8 {[%clk 0:00:28.8]} 42. Nb5
{[%clk 0:00:18.4]} 42... Rb8 {[%clk 0:00:29]} 43. Nd4 {[%clk 0:00:18.2]} 43...
Rc8 {[%clk 0:00:29.1]} 44. Kb2 {[%clk 0:00:17.1]} 44... a1=Q+ {[%clk 0:00:27.3]}
45. Rxa1 {[%clk 0:00:16.7]} 45... Rxa1 {[%clk 0:00:27.4]} 46. Kxa1 {[%clk
0:00:17.2]} 46... Rxc3 {[%clk 0:00:27.4]} 47. b5 {[%clk 0:00:15.1]} 47... Rc4
{[%clk 0:00:25.8]} 48. b6 {[%clk 0:00:03.3]} 48... Rb4 {[%clk 0:00:22.4]} 49.
Rf4 {[%clk 0:00:03.6]} 49... Rxb6 {[%clk 0:00:20.7]} 50. Rf6 {[%clk 0:00:04.2]}
50... Kg7 {[%clk 0:00:16.5]} 51. Ka2 {[%clk 0:00:03.3]} 51... Nd7 {[%clk
0:00:15.4]} 52. Nxe6+ {[%clk 0:00:02.9]} 52... Kg8 {[%clk 0:00:12.3]} 53. Nf4
{[%clk 0:00:02.2]} 53... Nxf6 {[%clk 0:00:12.1]} 54. gxf6 {[%clk 0:00:03.1]}
54... Kf7 {[%clk 0:00:09.2]} 55. e6+ {[%clk 0:00:02.4]} 55... Rxe6 {[%clk
0:00:08.1]} 56. Nxe6 {[%clk 0:00:02.5]} 56... Kxe6 {[%clk 0:00:08]} 57. Kb3
{[%clk 0:00:03.2]} 57... Kxf6 {[%clk 0:00:08.3]} 58. Kc3 {[%clk 0:00:04.1]}
58... Ke5 {[%clk 0:00:08.9]} 59. Kd3 {[%clk 0:00:04]} 59... h5 {[%clk
0:00:08.4]} 60. Ke2 {[%clk 0:00:04.9]} 60... Ke4 {[%clk 0:00:08.4]} 61. Kf2
{[%clk 0:00:05.8]} 61... g5 {[%clk 0:00:08.6]} 62. Kg3 {[%clk 0:00:06.7]} 62...
Kxe3 {[%clk 0:00:08.5]} 63. Kh3 {[%clk 0:00:07.6]} 63... d4 {[%clk 0:00:08.9]}
64. Kg3 {[%clk 0:00:08.5]} 64... d3 {[%clk 0:00:09.4]} 65. Kh3 {[%clk
0:00:09.4]} 65... d2 {[%clk 0:00:09.9]} 66. Kg2 {[%clk 0:00:10.3]} 66... d1=Q
{[%clk 0:00:10.2]} 67. Kh2 {[%clk 0:00:11.2]} 67... Kf3 {[%clk 0:00:08.8]} 68.
Kh3 {[%clk 0:00:11]} 68... Qh1# {[%clk 0:00:09.4]} 0-1

[Event "*** Titled Tuesday Blitz"]
[Site "Chess.com"]
[Date "2020.04.28"]
[Round "8"]
[White "Feegus"]
[Black "dzhumagaliev"]
[Result "0-1"]
[WhiteElo "2475"]
[BlackElo "2726"]
[TimeControl "180+1"]
[EndTime "11:36:49 PDT"]
[Termination "dzhumagaliev won by checkmate"]

1. Nf3 {[%clk 0:02:58.5]} 1... c5 {[%clk 0:03:00.1]} 2. g3 {[%clk 0:02:59]} 2...
Nc6 {[%clk 0:03:00.7]} 3. Bg2 {[%clk 0:02:59.9]} 3... h5 {[%clk 0:03:00.9]} 4.
O-O {[%clk 0:03:00.6]} 4... e5 {[%clk 0:03:00.2]} 5. h4 {[%clk 0:02:50.4]} 5...
d5 {[%clk 0:02:59.8]} 6. c4 {[%clk 0:02:47.9]} 6... d4 {[%clk 0:02:58.9]} 7. d3
{[%clk 0:02:46.9]} 7... Nf6 {[%clk 0:02:58.8]} 8. Bg5 {[%clk 0:02:45]} 8... Be7
{[%clk 0:02:58.3]} 9. a3 {[%clk 0:02:42.1]} 9... O-O {[%clk 0:02:58]} 10. Nbd2
{[%clk 0:02:37.1]} 10... Ng4 {[%clk 0:02:53]} 11. Bxe7 {[%clk 0:02:32.5]} 11...
Qxe7 {[%clk 0:02:53.9]} 12. Ne4 {[%clk 0:02:33]} 12... a5 {[%clk 0:02:52.5]} 13.
Qa4 {[%clk 0:02:31.6]} 13... Bf5 {[%clk 0:02:46.7]} 14. Nfd2 {[%clk 0:02:29.6]}
14... Rfc8 {[%clk 0:02:34.1]} 15. Ng5 {[%clk 0:02:24.3]} 15... f6 {[%clk
0:02:27.3]} 16. Bd5+ {[%clk 0:02:22.2]} 16... Kh8 {[%clk 0:02:26.3]} 17. Ngf3
{[%clk 0:02:01.1]} 17... Bd7 {[%clk 0:02:17.5]} 18. Qc2 {[%clk 0:01:39.9]} 18...
Be8 {[%clk 0:02:17.2]} 19. Ne4 {[%clk 0:01:36.5]} 19... Rab8 {[%clk 0:02:08.8]}
20. Kg2 {[%clk 0:01:32.9]} 20... b6 {[%clk 0:02:08.3]} 21. Qd2 {[%clk
0:01:28.2]} 21... Qd7 {[%clk 0:02:02]} 22. b3 {[%clk 0:01:23.5]} 22... Ne7
{[%clk 0:02:01.6]} 23. b4 {[%clk 0:01:06.3]} 23... axb4 {[%clk 0:01:58.5]} 24.
axb4 {[%clk 0:01:06]} 24... cxb4 {[%clk 0:01:48.4]} 25. Qxb4 {[%clk 0:01:04.3]}
25... Nxd5 {[%clk 0:01:47.4]} 26. Qf8+ {[%clk 0:01:04.2]} 26... Kh7 {[%clk
0:01:44.8]} 27. cxd5 {[%clk 0:00:42.4]} 27... Qxd5 {[%clk 0:01:35.9]} 28. Ra7
{[%clk 0:00:36.4]} 28... Bd7 {[%clk 0:01:03.9]} 29. Qe7 {[%clk 0:00:26.6]} 29...
Rd8 {[%clk 0:01:03.3]} 30. Rc1 {[%clk 0:00:23.9]} 30... Ra8 {[%clk 0:00:20]} 31.
Rcc7 {[%clk 0:00:11.5]} 31... Rxa7 {[%clk 0:00:16.5]} 32. Rxa7 {[%clk
0:00:11.4]} 32... Re8 {[%clk 0:00:10.3]} 33. Qxd7 {[%clk 0:00:11.1]} 33... Qxd7
{[%clk 0:00:10.9]} 34. Rxd7 {[%clk 0:00:12]} 34... Rb8 {[%clk 0:00:11.8]} 35.
Nd6 {[%clk 0:00:09.7]} 35... b5 {[%clk 0:00:10.2]} 36. Nd2 {[%clk 0:00:09.2]}
36... Kg6 {[%clk 0:00:09.3]} 37. Rb7 {[%clk 0:00:08.9]} 37... Rd8 {[%clk
0:00:08.8]} 38. Nxb5 {[%clk 0:00:08.5]} 38... Rd5 {[%clk 0:00:09.4]} 39. Nc7
{[%clk 0:00:08.4]} 39... Rd8 {[%clk 0:00:09.1]} 40. Ne6 {[%clk 0:00:07.6]} 40...
Rg8 {[%clk 0:00:08.8]} 41. Ne4 {[%clk 0:00:07.2]} 41... Nh6 {[%clk 0:00:08.4]}
42. f4 {[%clk 0:00:07.1]} 42... Nf5 {[%clk 0:00:08]} 43. fxe5 {[%clk 0:00:05.6]}
43... Ne3+ {[%clk 0:00:07.7]} 44. Kf3 {[%clk 0:00:05.3]} 44... fxe5 {[%clk
0:00:07.2]} 45. N4g5 {[%clk 0:00:04.7]} 45... Ra8 {[%clk 0:00:04.8]} 46. Ke4
{[%clk 0:00:04.8]} 46... Ng4 {[%clk 0:00:04.4]} 47. Rxg7+ {[%clk 0:00:03.6]}
47... Kf6 {[%clk 0:00:04.8]} 48. Rf7+ {[%clk 0:00:03]} 48... Kg6 {[%clk
0:00:05.2]} 49. Rg7+ {[%clk 0:00:03.1]} 49... Kf6 {[%clk 0:00:05.5]} 50. Rc7
{[%clk 0:00:03.2]} 50... Ra5 {[%clk 0:00:04.8]} 51. Rc5 {[%clk 0:00:02.6]} 51...
Ra6 {[%clk 0:00:04.4]} 52. Kd5 {[%clk 0:00:02.9]} 52... Kf5 {[%clk 0:00:04.3]}
53. Ng7+ {[%clk 0:00:02.1]} 53... Kg6 {[%clk 0:00:03.8]} 54. N7e6 {[%clk
0:00:02.6]} 54... Kf5 {[%clk 0:00:04.7]} 55. Nf8 {[%clk 0:00:02.6]} 55... Ne3#
{[%clk 0:00:04]} 0-1

[Event "*** Titled Tuesday Blitz"]
[Site "Chess.com"]
[Date "2020.04.28"]
[Round "8"]
[White "ZarinaShafigullina"]
[Black "Kostya26"]
[Result "1-0"]
[WhiteElo "2223"]
[BlackElo "2393"]
[TimeControl "180+1"]
[EndTime "11:36:49 PDT"]
[Termination "ZarinaShafigullina won by resignation"]

1. d4 {[%clk 0:03:00.9]} 1... d5 {[%clk 0:02:57.9]} 2. Nf3 {[%clk 0:03:01.8]}
2... Nf6 {[%clk 0:02:57.6]} 3. g3 {[%clk 0:03:02.3]} 3... Bf5 {[%clk 0:02:57.4]}
4. c4 {[%clk 0:03:01.3]} 4... e6 {[%clk 0:02:57.7]} 5. Nc3 {[%clk 0:02:59]} 5...
c6 {[%clk 0:02:57.7]} 6. Nh4 {[%clk 0:02:58.6]} 6... Bg6 {[%clk 0:02:57]} 7. Qb3
{[%clk 0:02:56.2]} 7... Qc8 {[%clk 0:02:43.9]} 8. Bg2 {[%clk 0:02:47]} 8... Be7
{[%clk 0:02:39.5]} 9. O-O {[%clk 0:02:36.5]} 9... O-O {[%clk 0:02:37.7]} 10.
Nxg6 {[%clk 0:02:36.4]} 10... hxg6 {[%clk 0:02:38.6]} 11. e4 {[%clk 0:02:35.6]}
11... dxe4 {[%clk 0:02:38.2]} 12. Nxe4 {[%clk 0:02:35.9]} 12... Nxe4 {[%clk
0:02:38.1]} 13. Bxe4 {[%clk 0:02:36.2]} 13... Nd7 {[%clk 0:02:39]} 14. Re1
{[%clk 0:02:30.7]} 14... Nf6 {[%clk 0:02:38.4]} 15. Bf3 {[%clk 0:02:28.6]} 15...
Rd8 {[%clk 0:02:38.5]} 16. Be3 {[%clk 0:02:08.6]} 16... Qd7 {[%clk 0:02:32.3]}
17. Rad1 {[%clk 0:02:08.1]} 17... Rac8 {[%clk 0:02:23.3]} 18. Bg5 {[%clk
0:01:46.2]} 18... Qc7 {[%clk 0:02:10.7]} 19. Re2 {[%clk 0:01:12]} 19... b6
{[%clk 0:01:45.9]} 20. Red2 {[%clk 0:01:08.4]} 20... c5 {[%clk 0:01:33.5]} 21.
Bxf6 {[%clk 0:00:51.7]} 21... Bxf6 {[%clk 0:01:28.9]} 22. d5 {[%clk 0:00:52.1]}
22... exd5 {[%clk 0:01:23.6]} 23. Bxd5 {[%clk 0:00:51.8]} 23... Bd4 {[%clk
0:01:19.9]} 24. Qf3 {[%clk 0:00:51.4]} 24... Rd6 {[%clk 0:01:13.3]} 25. b3
{[%clk 0:00:40.8]} 25... Rf6 {[%clk 0:01:11.4]} 26. Qg4 {[%clk 0:00:35.3]} 26...
Re8 {[%clk 0:01:04.9]} 27. Kg2 {[%clk 0:00:34.5]} 27... Qe5 {[%clk 0:00:56]} 28.
Rxd4 {[%clk 0:00:19.8]} 28... cxd4 {[%clk 0:00:55]} 29. Rxd4 {[%clk 0:00:20.4]}
29... Qe2 {[%clk 0:00:45.1]} 30. Qxe2 {[%clk 0:00:18.4]} 30... Rxe2 {[%clk
0:00:43.6]} 31. Bf3 {[%clk 0:00:19]} 31... Rxa2 {[%clk 0:00:43.2]} 32. Rd7
{[%clk 0:00:18.9]} 32... Ra3 {[%clk 0:00:37.9]} 33. Bd5 {[%clk 0:00:17.4]} 33...
Ra2 {[%clk 0:00:32.5]} 34. Bf3 {[%clk 0:00:17]} 34... Rb2 {[%clk 0:00:25.2]} 35.
Rxa7 {[%clk 0:00:16.3]} 35... Rxb3 {[%clk 0:00:25.1]} 36. Bd5 {[%clk 0:00:14.9]}
36... Rb2 {[%clk 0:00:24.6]} 37. Bf3 {[%clk 0:00:15]} 37... Rc2 {[%clk
0:00:24.6]} 38. Rb7 {[%clk 0:00:14.3]} 38... Rxc4 {[%clk 0:00:21.7]} 39. Rb8+
{[%clk 0:00:14.7]} 39... Kh7 {[%clk 0:00:21.2]} 40. h4 {[%clk 0:00:15.3]} 40...
Rc3 {[%clk 0:00:20.4]} 41. Be4 {[%clk 0:00:14.7]} 41... Rb3 {[%clk 0:00:16.3]}
42. h5 {[%clk 0:00:13.5]} 42... Rb2 {[%clk 0:00:16]} 43. hxg6+ {[%clk
0:00:11.8]} 43... fxg6 {[%clk 0:00:16]} 44. Bf3 {[%clk 0:00:12.4]} 44... b5
{[%clk 0:00:16.1]} 45. Rb7 {[%clk 0:00:11.7]} 45... b4 {[%clk 0:00:15.7]} 46. g4
{[%clk 0:00:12.3]} 46... b3 {[%clk 0:00:14.8]} 47. Kg3 {[%clk 0:00:12.6]} 47...
Rb1 {[%clk 0:00:12]} 48. Be4 {[%clk 0:00:11.2]} 48... Rg1+ {[%clk 0:00:06.6]}
49. Kh2 {[%clk 0:00:11.3]} 49... Rxg4 {[%clk 0:00:05.8]} 50. f3 {[%clk
0:00:11.6]} 50... Rxe4 {[%clk 0:00:04.8]} 51. fxe4 {[%clk 0:00:11.6]} 51... Rf2+
{[%clk 0:00:05.4]} 52. Kg3 {[%clk 0:00:11.6]} 52... Rb2 {[%clk 0:00:06.3]} 53.
e5 {[%clk 0:00:11.1]} 53... Kg8 {[%clk 0:00:04.5]} 54. e6 {[%clk 0:00:10.9]}
54... Kf8 {[%clk 0:00:03.9]} 55. Rf7+ {[%clk 0:00:09.1]} 55... Kg8 {[%clk
0:00:04]} 56. Rb7 {[%clk 0:00:08.7]} 56... Rb1 {[%clk 0:00:04.4]} 57. Rb8+
{[%clk 0:00:06.8]} 57... Kh7 {[%clk 0:00:03.9]} 58. e7 {[%clk 0:00:07.3]} 58...
Re1 {[%clk 0:00:02.6]} 59. e8=Q {[%clk 0:00:07.1]} 59... Rxe8 {[%clk 0:00:02.5]}
60. Rxe8 {[%clk 0:00:07.2]} 60... b2 {[%clk 0:00:03.4]} 61. Rb8 {[%clk
0:00:07.5]} 1-0

[Event "*** Titled Tuesday Blitz"]
[Site "Chess.com"]
[Date "2020.04.28"]
[Round "8"]
[White "Vespasian23"]
[Black "TheMightyBishops"]
[Result "1-0"]
[WhiteElo "2267"]
[BlackElo "2011"]
[TimeControl "180+1"]
[EndTime "11:36:49 PDT"]
[Termination "Vespasian23 won by resignation"]

1. e4 {[%clk 0:03:00.9]} 1... d6 {[%clk 0:02:57.1]} 2. Nf3 {[%clk 0:02:59.8]}
2... Nd7 {[%clk 0:02:56.8]} 3. g3 {[%clk 0:02:55.7]} 3... e5 {[%clk 0:02:56.5]}
4. Bg2 {[%clk 0:02:55.6]} 4... Ngf6 {[%clk 0:02:56.4]} 5. Qe2 {[%clk 0:02:53]}
5... Be7 {[%clk 0:02:54.9]} 6. O-O {[%clk 0:02:52.6]} 6... c6 {[%clk 0:02:54.8]}
7. b3 {[%clk 0:02:52.1]} 7... Qc7 {[%clk 0:02:54.3]} 8. Bb2 {[%clk 0:02:51.2]}
8... h6 {[%clk 0:02:54]} 9. c4 {[%clk 0:02:51]} 9... b6 {[%clk 0:02:52.3]} 10.
Nc3 {[%clk 0:02:50.6]} 10... Nh7 {[%clk 0:02:32.9]} 11. d4 {[%clk 0:02:46.9]}
11... f6 {[%clk 0:02:28.6]} 12. Rfd1 {[%clk 0:02:37.8]} 12... Ng5 {[%clk
0:02:27.6]} 13. Nh4 {[%clk 0:02:34.4]} 13... Nf8 {[%clk 0:02:23.4]} 14. a4
{[%clk 0:02:23.6]} 14... h5 {[%clk 0:02:21.9]} 15. d5 {[%clk 0:02:12]} 15... c5
{[%clk 0:02:09.2]} 16. Nb5 {[%clk 0:02:09.1]} 16... Qd7 {[%clk 0:02:09.4]} 17.
a5 {[%clk 0:02:06.2]} 17... a6 {[%clk 0:02:08.8]} 18. Nc3 {[%clk 0:02:05.2]}
18... Nh3+ {[%clk 0:02:06.3]} 19. Kh1 {[%clk 0:01:57.5]} 19... g5 {[%clk
0:02:05.3]} 20. Nf5 {[%clk 0:01:56.7]} 20... g4 {[%clk 0:02:05.5]} 21. axb6
{[%clk 0:01:47.7]} 21... Ng6 {[%clk 0:02:00.7]} 22. b4 {[%clk 0:01:37.3]} 22...
Ngf4 {[%clk 0:01:51.2]} 23. gxf4 {[%clk 0:01:34.6]} 23... Nxf4 {[%clk
0:01:50.7]} 24. Qc2 {[%clk 0:01:28.5]} 24... Bd8 {[%clk 0:01:45.1]} 25. bxc5
{[%clk 0:01:24.6]} 25... dxc5 {[%clk 0:01:44.2]} 26. Qa4 {[%clk 0:01:23.7]}
26... Bxb6 {[%clk 0:01:40.9]} 27. Qxd7+ {[%clk 0:01:21.3]} 27... Bxd7 {[%clk
0:01:40.9]} 28. Na4 {[%clk 0:01:21.6]} 28... Ba7 {[%clk 0:01:39.3]} 29. Bc1
{[%clk 0:01:14.8]} 29... Ne2 {[%clk 0:01:33.9]} 30. Be3 {[%clk 0:01:10.1]} 30...
Nd4 {[%clk 0:01:33.7]} 31. Nxd4 {[%clk 0:01:02.6]} 31... exd4 {[%clk 0:01:34.1]}
32. Bf4 {[%clk 0:01:02.1]} 32... h4 {[%clk 0:01:34]} 33. e5 {[%clk 0:00:56.5]}
33... h3 {[%clk 0:01:31.7]} 34. Be4 {[%clk 0:00:53.6]} 34... fxe5 {[%clk
0:01:31.3]} 35. Bxe5 {[%clk 0:00:53.3]} 35... Rf8 {[%clk 0:01:30.2]} 36. Rd2
{[%clk 0:00:51.4]} 36... Bf5 {[%clk 0:01:21]} 37. Bxf5 {[%clk 0:00:49]} 37...
Rxf5 {[%clk 0:01:21]} 38. Bd6 {[%clk 0:00:49.3]} 38... Rc8 {[%clk 0:01:19.3]}
39. Rb1 {[%clk 0:00:45.8]} 39... Kd7 {[%clk 0:01:18.3]} 40. Bg3 {[%clk
0:00:44.7]} 40... Rf3 {[%clk 0:01:14.7]} 41. Rb7+ {[%clk 0:00:42.2]} 41... Kd8
{[%clk 0:01:14.4]} 42. Rxa7 {[%clk 0:00:40.1]} 42... Ra3 {[%clk 0:01:10.3]} 43.
Nb2 {[%clk 0:00:38.4]} 43... Ra1+ {[%clk 0:01:08.9]} 44. Nd1 {[%clk 0:00:38.4]}
44... a5 {[%clk 0:01:05.6]} 45. Kg1 {[%clk 0:00:32.4]} 45... a4 {[%clk
0:01:05.5]} 46. Kf1 {[%clk 0:00:32.8]} 46... a3 {[%clk 0:01:05]} 47. Ke2 {[%clk
0:00:33]} 47... Rb1 {[%clk 0:01:04.4]} 48. Rxa3 {[%clk 0:00:31.4]} 48... Ke7
{[%clk 0:01:02.7]} 49. Kd3 {[%clk 0:00:29.2]} 49... Kf6 {[%clk 0:01:02]} 50. Kc2
{[%clk 0:00:28.7]} 50... Rb4 {[%clk 0:01:01.2]} 51. Ra6+ {[%clk 0:00:28.7]}
51... Kf5 {[%clk 0:01:00.5]} 52. Nb2 {[%clk 0:00:25.7]} 52... Rcb8 {[%clk
0:00:59.1]} 53. Kc1 {[%clk 0:00:24.9]} 53... R8b7 {[%clk 0:00:57.1]} 54. Rc6
{[%clk 0:00:23.2]} 54... Ke4 {[%clk 0:00:56.7]} 55. Rxc5 {[%clk 0:00:23.3]}
55... Kf3 {[%clk 0:00:54.3]} 56. d6 {[%clk 0:00:23.5]} 56... Kg2 {[%clk
0:00:50.7]} 57. Rd5 {[%clk 0:00:23.3]} 57... Ra7 {[%clk 0:00:48.1]} 58. R5xd4
{[%clk 0:00:22]} 58... Ra1+ {[%clk 0:00:48]} 59. Kc2 {[%clk 0:00:22.3]} 59...
Ra2 {[%clk 0:00:45.5]} 60. Kc3 {[%clk 0:00:22.4]} 60... Rb7 {[%clk 0:00:44.5]}
61. d7 {[%clk 0:00:21.5]} 61... Rba7 {[%clk 0:00:44.7]} 62. c5 {[%clk
0:00:19.2]} 62... R7a3+ {[%clk 0:00:44.5]} 63. Kc4 {[%clk 0:00:19.6]} 63... Rxg3
{[%clk 0:00:35.6]} 64. fxg3+ {[%clk 0:00:18]} 64... Kf3 {[%clk 0:00:35.1]} 65.
d8=Q {[%clk 0:00:18.1]} 1-0